fUST/lending_fUST_20240701
["ID","MTS","AMOUNT","RATE_DAILY","PERIOD"]
[330777560,1719774644153,-647.68,0.00015047,2]
[330777561,1719774644163,-500.0,0.00015047,2]
[330777562,1719774644174,-500.0,0.00015047,2]
[330777563,1719774644184,-500.0,0.00015047,2]
[330777564,1719774644194,-631.0,0.00015047,2]
[330777565,1719774644208,-1765.81,0.00015047,2]
[330777566,1719774644217,-500.0,0.00015047,2]
[330777567,1719774644227,-500.0,0.00015047,2]
[330777568,1719774644236,-500.0,0.00015047,2]
[330777569,1719774644247,-500.0,0.00015047,2]
[330777570,1719774644257,-500.0,0.00015047,2]
[330777571,1719774644266,-500.0,0.00015047,2]
[330777572,1719774644277,-923.21,0.00015047,2]
[330777573,1719774644287,-500.0,0.00015047,2]
[330777574,1719774644297,-1187.82,0.00015047,2]
[330777575,1719774644307,-500.0,0.00015047,2]
[330777576,1719774644316,-921.78,0.00015047,2]
[330777577,1719774644324,-1497.12,0.00015047,2]
[330777578,1719774644334,-500.0,0.00015047,2]
[330777579,1719774644343,-16277.6,0.00015047,2]
[330777580,1719774644352,-544.97,0.00015047,2]
[330777581,1719774644362,-501.8330513,0.00015047,2]
[330777582,1719774644372,-500.0,0.00015047,2]
[330777583,1719774644381,-546.66,0.00015047,2]
[330777584,1719774644390,-500.0,0.00015047,2]
[330777585,1719774644399,-502.16022671,0.00015047,2]
[330777586,1719774644408,-500.0,0.00015047,2]
[330777587,1719774644417,-500.0,0.00015047,2]
[330777588,1719774644427,-500.0,0.00015048,2]
[330777589,1719774644437,-500.0,0.00015048,2]
[330777590,1719774644446,-500.0,0.00015048,2]
[330777591,1719774644456,-500.0,0.00015049,2]
[330777592,1719774644465,-176.34403504,0.00015049,2]
[330777593,1719774644474,-518.66411697,0.00015049,2]
[330777594,1719774644483,-270.87016413,0.00015049,2]
[330777595,1719774644492,-500.0,0.00015049,2]
[330777596,1719774644501,-500.0,0.00015049,2]
[330777597,1719774644510,-500.0,0.00015049,2]
[330777598,1719774644519,-500.0,0.00015049,2]
[330777599,1719774644528,-500.0,0.00015049,2]
[330777600,1719774644537,-500.0,0.00015049,2]
[330777601,1719774644547,-589.7,0.00015049,2]
[330777602,1719774644556,-539.59,0.00015049,2]
[330777603,1719774644566,-500.0,0.00015049,2]
[330777604,1719774644575,-9135.47,0.00015049,2]
[330777605,1719774644584,-292.863491,0.00015049,2]
[330777606,1719774644594,-2166.84,0.00015049,2]
[330777607,1719774644691,-1881.37,0.0001505,2]
[330777608,1719774644701,-500.0,0.0001505,2]
[330777609,1719774644711,-1334.47,0.0001505,2]
[330777610,1719774644720,-1374.46,0.0001505,2]
[330777611,1719774644730,-15209.01,0.0001505,2]
[330777612,1719774644739,-5286.34479944,0.00015091,2]
[330777613,1719774644747,-153.0,0.00015395,2]
[330777614,1719774644757,-153.0,0.00015395,2]
[330777615,1719774644767,-500.0,0.00015397,2]
[330777616,1719774644776,-153.0,0.00015398,2]
[330777617,1719774644786,-153.0,0.00015398,2]
[330777618,1719774644795,-153.0,0.00015398,2]
[330777619,1719774644804,-2277.3,0.00015591,2]
[330777620,1719774644813,-697.07,0.00015591,2]
[330777621,1719774644823,-2142.62,0.00015591,2]
[330777622,1719774644833,-500.0,0.00015591,2]
[330777623,1719774644842,-18967.45,0.00015591,2]
[330777624,1719774644852,-2624.39,0.00015591,2]
[330777625,1719774644863,-4635.96,0.00015591,2]
[330777626,1719774644873,-1309.5,0.00015591,2]
[330777627,1719774644882,-500.0,0.00015591,2]
[330777628,1719774644892,-1862.15,0.00015591,2]
[330777629,1719774644902,-500.0,0.00015592,2]
[330777630,1719774644912,-500.0,0.00015592,2]
[330777631,1719774644922,-712.42,0.00015592,2]
[330777632,1719774644932,-502.84176191,0.00015592,2]
[330777633,1719774644943,-355.64582305,0.00015592,2]
[330777634,1719774644953,-500.0,0.00015592,2]
[330777635,1719774644966,-500.0,0.00015592,2]
[330777636,1719774644975,-500.0,0.00015592,2]
[330777637,1719774644985,-504.59801319,0.00015592,2]
[330777638,1719774644994,-7648.13,0.00015592,2]
[330777639,1719774645004,-4871.08,0.00015592,2]
[330777640,1719774645013,-2627.71,0.00015592,2]
[330777641,1719774645023,-4700.16,0.00015592,2]
[330777642,1719774645032,-2481.77,0.00015592,2]
[330777643,1719774645042,-500.0,0.00015592,2]
[330777644,1719774645051,-500.0,0.00015592,2]
[330777645,1719774645060,-889.06,0.00015592,2]
[330777646,1719774645070,-500.0,0.00015592,2]
[330777647,1719774645080,-500.0,0.00015592,2]
[330777648,1719774645090,-2214.94,0.00015592,2]
[330777649,1719774645101,-500.0,0.00015592,2]
[330777650,1719774645111,-2116.6,0.00015592,2]
[330777651,1719774645120,-7044.52,0.00015592,2]
[330777652,1719774645129,-500.0,0.00015592,2]
[330777653,1719774645138,-18930.96,0.00015592,2]
[330777654,1719774645147,-1234.46,0.00015592,2]
[330777655,1719774645157,-500.0,0.00015592,2]
[330777656,1719774645166,-614.69,0.00015592,2]
[330777657,1719774645175,-813.63,0.00015592,2]
[330777658,1719774645185,-813.91,0.00015592,2]
[330777659,1719774645195,-528.67,0.00015592,2]
[330777660,1719774645205,-500.0,0.00015592,2]
[330777661,1719774645215,-500.0,0.00015593,2]
[330777662,1719774645225,-500.0,0.00015593,2]
[330777663,1719774645234,-1993.96,0.00015593,2]
[330777664,1719774645243,-500.0,0.00015593,2]
[330777665,1719774645254,-500.0,0.00015593,2]
[330777666,1719774645264,-500.0,0.00015593,2]
[330777667,1719774645273,-500.0,0.00015593,2]
[330777668,1719774645285,-500.0,0.00015593,2]
[330777669,1719774645294,-500.0,0.00015593,2]
[330777670,1719774645303,-500.0,0.00015593,2]
[330777671,1719774645313,-500.0,0.00015593,2]
[330777672,1719774645322,-542.46,0.00015593,2]
[330777673,1719774645331,-500.0,0.00015593,2]
[330777674,1719774645341,-500.0,0.00015593,2]
[330777675,1719774645351,-2406.73,0.00015593,2]
[330777676,1719774645360,-500.0,0.00015593,2]
[330777677,1719774645370,-500.0,0.00015593,2]
[330777678,1719774645382,-500.0,0.00015593,2]
[330777679,1719774645391,-525.55562357,0.00015593,2]
[330777680,1719774645402,-500.0,0.00015593,2]
[330777681,1719774645412,-500.0,0.00015593,2]
[330777682,1719774645421,-500.0,0.00015593,2]
[330777683,1719774645431,-500.0,0.00015593,2]
[330777684,1719774645442,-536.48,0.00015593,2]
[330777685,1719774645452,-500.0,0.00015593,2]
[330777686,1719774645462,-2276.21,0.00015593,2]
[330777687,1719774645471,-500.0,0.00015593,2]
[330777688,1719774645482,-2847.63,0.00015593,2]
[330777689,1719774645492,-500.0,0.00015593,2]
[330777690,1719774645503,-550.43610066,0.00015593,2]
[330777691,1719774645513,-860.52,0.00015593,2]
[330777692,1719774645522,-690.64,0.00015593,2]
[330777693,1719774645532,-500.0,0.00015593,2]
[330777694,1719774645542,-500.0,0.00015593,2]
[330777695,1719774645552,-506.8484284,0.00015593,2]
[330777696,1719774645562,-951.73,0.00015593,2]
[330777697,1719774645572,-500.0,0.00015593,2]
[330777698,1719774645582,-641.74,0.00015593,2]
[330777699,1719774645593,-1705.92,0.00015593,2]
[330777700,1719774645604,-506.28796001,0.00015593,2]
[330777701,1719774645615,-500.0,0.00015593,2]
[330777702,1719774645624,-500.0,0.00015593,2]
[330777703,1719774645635,-500.0,0.00015593,2]
[330777704,1719774645645,-500.0,0.00015593,2]
[330777705,1719774645654,-991.95,0.00015593,2]
[330777706,1719774645664,-1458.56,0.00015593,2]
[330777707,1719774645674,-500.0,0.00015593,2]
[330777708,1719774645685,-500.0,0.00015593,2]
[330777709,1719774645694,-500.0,0.00015593,2]
[330777710,1719774645704,-500.0,0.00015593,2]
[330777711,1719774645713,-537.54,0.00015593,2]
[330777712,1719774645724,-578.91,0.00015593,2]
[330777713,1719774645733,-500.0,0.00015593,2]
[330777714,1719774645743,-751.46,0.00015593,2]
[330777715,1719774645752,-500.0,0.00015593,2]
[330777716,1719774645762,-507.25,0.00015593,2]
[330777717,1719774645771,-1003.06,0.00015593,2]
[330777718,1719774645780,-500.0,0.00015593,2]
[330777719,1719774645790,-500.0,0.00015593,2]
[330777720,1719774645799,-807.07,0.00015593,2]
[330777721,1719774645808,-501.72,0.00015593,2]
[330777722,1719774645818,-501.28598276,0.00015593,2]
[330777723,1719774645828,-685.07,0.00015593,2]
[330777724,1719774645838,-500.0,0.00015593,2]
[330777725,1719774645847,-500.0,0.00015593,2]
[330777727,1719774645856,-521.16828657,0.00015593,2]
[330777728,1719774645865,-500.0,0.00015593,2]
[330777729,1719774645874,-500.0,0.00015593,2]
[330777730,1719774645883,-500.0,0.00015593,2]
[330777731,1719774645893,-500.0,0.00015593,2]
[330777732,1719774645903,-237.82103358,0.00015593,2]
[330777734,1719774646216,-266.8860861,0.00015593,2]
[330777735,1719774646226,-500.0,0.00015593,2]
[330777736,1719774646235,-500.0,0.00015593,2]
[330777737,1719774646247,-500.0,0.00015593,2]
[330777738,1719774646256,-500.0,0.00015593,2]
[330777739,1719774646266,-500.0,0.00015593,2]
[330777740,1719774646276,-500.0,0.00015593,2]
[330777741,1719774646288,-500.0,0.00015593,2]
[330777742,1719774646298,-778.37,0.00015593,2]
[330777743,1719774646307,-500.0,0.00015593,2]
[330777744,1719774646316,-500.0,0.00015593,2]
[330777745,1719774646325,-1141.65,0.00015593,2]
[330777746,1719774646334,-500.0,0.00015593,2]
[330777747,1719774646343,-500.0,0.00015593,2]
[330777748,1719774646353,-458.17157643,0.00015593,2]
[330777749,1719774646363,-598.81,0.00015593,2]
[330777750,1719774646372,-500.0,0.00015593,2]
[330777751,1719774646382,-2484.07,0.00015593,2]
[330777752,1719774646392,-500.0,0.00015593,2]
[330777753,1719774646403,-99.6470038,0.00015593,2]
[330777754,1719774646415,-775.3229962,0.00015593,2]
[330777755,1719774646424,-12013.27,0.00015593,2]
[330777756,1719774646434,-508.18186603,0.00015593,2]
[330777757,1719774646446,-1589.89,0.00015593,2]
[330777758,1719774646455,-500.0,0.00015593,2]
[330777759,1719774646464,-504.34795031,0.00015593,2]
[330777760,1719774646474,-3947.59,0.00015593,2]
[330777761,1719774646483,-594.68,0.00015593,2]
[330777762,1719774646492,-500.0,0.00015593,2]
[330777763,1719774646502,-1718.52,0.00015593,2]
[330777764,1719774646512,-500.0,0.00015593,2]
[330777765,1719774646522,-11916.96,0.00015593,2]
[330777766,1719774646531,-770.61,0.00015593,2]
[330777767,1719774646541,-500.0,0.00015593,2]
[330777768,1719774646550,-500.0,0.00015593,2]
[330777769,1719774646560,-500.0,0.00015593,2]
[330777770,1719774646569,-500.0,0.00015593,2]
[330777771,1719774646579,-500.0,0.00015593,2]
[330777772,1719774646588,-858.99,0.00015593,2]
[330777773,1719774646597,-500.0,0.00015593,2]
[330777774,1719774646607,-777.29,0.00015593,2]
[330777775,1719774646615,-500.0,0.00015593,2]
[330777776,1719774646626,-500.0,0.00015593,2]
[330777777,1719774646635,-1599.27,0.00015593,2]
[330777778,1719774646644,-500.0,0.00015593,2]
[330777779,1719774646654,-500.0,0.00015593,2]
[330777780,1719774646663,-1090.06,0.00015593,2]
[330777781,1719774646672,-979.26,0.00015593,2]
[330777782,1719774646682,-1908.45,0.00015593,2]
[330777783,1719774646693,-500.0,0.00015593,2]
[330777784,1719774646702,-500.0,0.00015593,2]
[330777785,1719774646711,-599.91,0.00015593,2]
[330777786,1719774646720,-1027.12,0.00015593,2]
[330777787,1719774646729,-2390.63,0.00015593,2]
[330777788,1719774646740,-500.0,0.00015593,2]
[330777789,1719774646749,-528.45,0.00015593,2]
[330777790,1719774646759,-502.61,0.00015593,2]
[330777791,1719774646768,-500.0,0.00015593,2]
[330777792,1719774646779,-500.0,0.00015593,2]
[330777793,1719774646789,-602.44,0.00015593,2]
[330777794,1719774646798,-500.0,0.00015593,2]
[330777795,1719774646807,-511.04,0.00015593,2]
[330777796,1719774646817,-500.0,0.00015593,2]
[330777797,1719774646826,-1996.98,0.00015593,2]
[330777798,1719774646835,-500.0,0.00015593,2]
[330777799,1719774646844,-500.0,0.00015593,2]
[330777800,1719774646854,-474.6550702,0.00015593,2]
[330777801,1719774646863,-500.0,0.00015593,2]
[330777802,1719774646873,-218.19903347,0.00015594,2]
[330777803,1719774646882,-500.0,0.00015594,2]
[330777804,1719774646892,-500.0,0.00015594,2]
[330777805,1719774646901,-1015.18,0.00015594,2]
[330777806,1719774646910,-905.39,0.00015594,2]
[330777807,1719774646919,-1337.25,0.00015594,2]
[330777808,1719774646929,-500.0,0.00015594,2]
[330777809,1719774646942,-1040.5,0.00015594,2]
[330777810,1719774646952,-1613.85,0.00015594,2]
[330777811,1719774646961,-500.0,0.00015594,2]
[330777812,1719774646970,-500.0,0.00015594,2]
[330777813,1719774646979,-353.83985516,0.00015595,2]
[330777814,1719774646989,-500.0,0.00015595,2]
[330777815,1719774646999,-591.84,0.00015595,2]
[330777816,1719774647008,-500.0,0.00015595,2]
[330777817,1719774647018,-500.0,0.00015595,2]
[330777818,1719774647027,-245.82003881,0.00015595,2]
[330777819,1719774647036,-500.0,0.00015595,2]
[330777820,1719774647046,-1078.14,0.00015595,2]
[330777821,1719774647055,-678.24,0.00015595,2]
[330777822,1719774647065,-500.0,0.00015595,2]
[330777823,1719774647075,-500.0,0.00015595,2]
[330777824,1719774647085,-500.0,0.00015595,2]
[330777825,1719774647095,-500.0,0.00015595,2]
[330777826,1719774647105,-500.0,0.00015595,2]
[330777827,1719774647114,-500.0,0.00015595,2]
[330777828,1719774647123,-500.0,0.00015595,2]
[330777829,1719774647134,-500.0,0.00015595,2]
[330777830,1719774647143,-500.0,0.00015595,2]
[330777831,1719774647153,-429.36164715,0.00015595,2]
[330777832,1719774647162,-889.15,0.00015595,2]
[330777833,1719774647171,-500.0,0.00015595,2]
[330777834,1719774647181,-500.0,0.00015595,2]
[330777835,1719774647192,-500.0,0.00015595,2]
[330777836,1719774647206,-500.0,0.00015595,2]
[330777837,1719774647215,-500.0,0.00015595,2]
[330777838,1719774647225,-537.19,0.00015595,2]
[330777839,1719774647235,-500.0,0.00015595,2]
[330777840,1719774647247,-500.0,0.00015595,2]
[330777841,1719774647257,-500.0,0.00015595,2]
[330777842,1719774647267,-1091.19,0.00015595,2]
[330777843,1719774647277,-500.0,0.00015595,2]
[330777844,1719774647287,-481.97794283,0.00015595,2]
[330777845,1719774647297,-313.14567912,0.00015595,2]
[330777846,1719774647307,-500.0,0.00015595,2]
[330777847,1719774647315,-500.0,0.00015595,2]
[330777848,1719774647324,-500.0,0.00015595,2]
[330777849,1719774647334,-500.0,0.00015595,2]
[330777850,1719774647343,-500.0,0.00015595,2]
[330777851,1719774647353,-500.0,0.00015595,2]
[330777852,1719774647362,-540.41,0.00015595,2]
[330777853,1719774647373,-500.0,0.00015595,2]
[330777854,1719774647382,-500.0,0.00015595,2]
[330777855,1719774647392,-500.0,0.00015595,2]
[330777856,1719774647401,-286.48561354,0.00015595,2]
[330777857,1719774647411,-500.0,0.00015595,2]
[330777858,1719774647420,-500.0,0.00015595,2]
[330777859,1719774647430,-500.0,0.00015595,2]
[330777860,1719774647440,-500.0,0.00015595,2]
[330777861,1719774647450,-500.0,0.00015595,2]
[330777862,1719774647459,-500.0,0.00015595,2]
[330777863,1719774647470,-500.0,0.00015595,2]
[330777864,1719774647479,-500.0,0.00015595,2]
[330777865,1719774647488,-500.0,0.00015595,2]
[330777866,1719774647498,-500.0,0.00015595,2]
[330777867,1719774647508,-500.0,0.00015595,2]
[330777868,1719774647518,-500.0,0.00015595,2]
[330777869,1719774647527,-684.88,0.00015595,2]
[330777870,1719774647537,-162.00836714,0.00015595,2]
[330777871,1719774647546,-500.0,0.00015595,2]
[330777872,1719774647555,-500.0,0.00015595,2]
[330777873,1719774647565,-500.0,0.00015595,2]
[330777874,1719774647575,-691.53,0.00015595,2]
[330777875,1719774647584,-1989.05,0.00015595,2]
[330777876,1719774647593,-500.0,0.00015595,2]
[330777877,1719774647603,-500.0,0.00015595,2]
[330777878,1719774647612,-968.01,0.00015595,2]
[330777879,1719774647621,-500.0,0.00015595,2]
[330777880,1719774647631,-500.0,0.00015595,2]
[330777881,1719774647640,-500.0,0.00015595,2]
[330777882,1719774647649,-500.0,0.00015595,2]
[330777883,1719774647658,-500.0,0.00015595,2]
[330777884,1719774647667,-1166.78,0.00015595,2]
[330777885,1719774647677,-500.0,0.00015595,2]
[330777886,1719774647687,-500.0,0.00015595,2]
[330777887,1719774647780,-662.06,0.00015595,2]
[330777888,1719774647791,-758.8,0.00015595,2]
[330777889,1719774647802,-1479.72,0.00015595,2]
[330777890,1719774647814,-647.68,0.00015595,2]
[330777891,1719774647823,-500.0,0.00015595,2]
[330777892,1719774647834,-631.0,0.00015595,2]
[330777893,1719774647843,-1765.81,0.00015595,2]
[330777894,1719774647853,-500.0,0.00015595,2]
[330777895,1719774647864,-279.917869,0.00015595,2]
[330777896,1719774647875,-500.0,0.00015595,2]
[330777897,1719774647885,-279.917869,0.00015595,2]
[330777898,1719774647895,-500.0,0.00015595,2]
[330777899,1719774647906,-151.0,0.00015595,2]
[330777900,1719774647916,-500.0,0.00015595,2]
[330777901,1719774647926,-500.0,0.00015595,2]
[330777902,1719774647940,-500.0,0.00015595,2]
[330777903,1719774647949,-151.0,0.00015595,2]
[330777904,1719774647958,-923.21,0.00015595,2]
[330777905,1719774647968,-1187.82,0.00015595,2]
[330777906,1719774647978,-500.0,0.00015595,2]
[330777907,1719774647988,-921.78,0.00015595,2]
[330777908,1719774647997,-1497.12,0.00015595,2]
[330777909,1719774648007,-500.0,0.00015595,2]
[330777910,1719774648016,-544.97,0.00015595,2]
[330777911,1719774648027,-16277.6,0.00015595,2]
[330777912,1719774648036,-500.0,0.00015595,2]
[330777913,1719774648045,-546.66,0.00015595,2]
[330777914,1719774648055,-500.0,0.00015595,2]
[330777915,1719774648065,-151.0,0.00015595,2]
[330777916,1719774648075,-151.0,0.00015595,2]
[330777917,1719774648084,-500.0,0.00015595,2]
[330777918,1719774648093,-589.7,0.00015597,2]
[330777919,1719774648103,-151.0,0.00015597,2]
[330777920,1719774648113,-151.0,0.00015597,2]
[330777921,1719774648123,-539.59,0.00015597,2]
[330777922,1719774648133,-151.0,0.00015597,2]
[330777923,1719774648143,-169.758044,0.00015597,2]
[330777924,1719774648152,-9135.47,0.00015597,2]
[330777925,1719774648161,-2166.84,0.00015597,2]
[330777926,1719774648171,-151.0,0.00015598,2]
[330777927,1719774648182,-1881.37,0.00015598,2]
[330777928,1719774648194,-500.0,0.00015598,2]
[330777929,1719774648206,-1334.47,0.00015598,2]
[330777930,1719774648221,-1374.46,0.00015598,2]
[330777931,1719774648230,-15209.01,0.00015598,2]
[330777932,1719774648239,-151.0,0.00015599,2]
[330777933,1719774648249,-621.04250653,0.00015661,2]
[330777934,1719774648258,-306.0,0.000158,2]
[330777935,1719774648266,-150.0,0.00015886,2]
[330777936,1719774648275,-877.0,0.0001589,2]
[330777937,1719774648286,-164.371,0.00015922,2]
[330777938,1719774648295,-150.0,0.00015922,2]
[330777939,1719774648304,-490.76095483,0.00015995,2]
[330777940,1719774648313,-1000.0,0.00016,16]
[330777941,1719774648322,-594.0,0.000161,2]
[330777942,1719774648332,-2277.3,0.00016139,2]
[330777943,1719774648341,-697.07,0.00016139,2]
[330777944,1719774648350,-2142.62,0.00016139,2]
[330777945,1719774648359,-500.0,0.00016139,2]
[330777946,1719774648368,-18967.45,0.00016139,2]
[330777947,1719774648378,-2624.39,0.00016139,2]
[330777948,1719774648387,-4635.96,0.00016139,2]
[330777949,1719774648396,-1309.5,0.00016139,2]
[330777950,1719774648405,-500.0,0.00016139,2]
[330777951,1719774648414,-1862.15,0.00016139,2]
[330777952,1719774648424,-500.0,0.0001614,2]
[330777953,1719774648433,-712.42,0.0001614,2]
[330777954,1719774648444,-500.0,0.0001614,2]
[330777955,1719774648454,-500.0,0.0001614,2]
[330777956,1719774648463,-7648.13,0.0001614,2]
[330777957,1719774648472,-4871.08,0.0001614,2]
[330777958,1719774648482,-2627.71,0.0001614,2]
[330777959,1719774648491,-4700.16,0.0001614,2]
[330777960,1719774648501,-2481.77,0.0001614,2]
[330777961,1719774648510,-500.0,0.0001614,2]
[330777962,1719774648519,-500.0,0.0001614,2]
[330777963,1719774648529,-889.06,0.0001614,2]
[330777964,1719774648538,-500.0,0.0001614,2]
[330777965,1719774648548,-500.0,0.0001614,2]
[330777966,1719774648557,-2214.94,0.0001614,2]
[330777967,1719774648567,-500.0,0.0001614,2]
[330777968,1719774648576,-2116.6,0.0001614,2]
[330777969,1719774648585,-7044.52,0.0001614,2]
[330777970,1719774648594,-18930.96,0.0001614,2]
[330777971,1719774648604,-1234.46,0.0001614,2]
[330777972,1719774648613,-607.1592799,0.0001614,2]
[330777973,1719774648622,-614.69,0.0001614,2]
[330777974,1719774648632,-813.63,0.0001614,2]
[330777975,1719774648641,-813.91,0.0001614,2]
[330777976,1719774648650,-528.67,0.0001614,2]
[330777977,1719774648659,-500.0,0.0001614,2]
[330777978,1719774648668,-500.0,0.00016141,2]
[330777979,1719774648677,-1993.96,0.00016141,2]
[330777980,1719774648687,-500.0,0.00016141,2]
[330777981,1719774648697,-500.0,0.00016141,2]
[330777982,1719774648706,-500.0,0.00016141,2]
[330777983,1719774648715,-500.0,0.00016141,2]
[330777984,1719774648725,-500.0,0.00016141,2]
[330777985,1719774648734,-542.46,0.00016141,2]
[330777986,1719774648743,-500.0,0.00016141,2]
[330777987,1719774648752,-500.0,0.00016141,2]
[330777988,1719774648761,-2406.73,0.00016141,2]
[330777989,1719774648770,-169.47672706,0.00016141,2]
[330777990,1719774648779,-500.0,0.00016141,2]
[330777991,1719774648789,-500.0,0.00016141,2]
[330777992,1719774648799,-500.0,0.00016141,2]
[330777993,1719774648809,-500.0,0.00016141,2]
[330777994,1719774648818,-536.48,0.00016141,2]
[330777995,1719774648828,-500.0,0.00016141,2]
[330777996,1719774648838,-2276.21,0.00016141,2]
[330777997,1719774648848,-500.0,0.00016141,2]
[330777998,1719774648856,-2847.63,0.00016141,2]
[330777999,1719774648866,-500.0,0.00016141,2]
[330778000,1719774648875,-860.52,0.00016141,2]
[330778001,1719774648884,-690.64,0.00016141,2]
[330778002,1719774648893,-551.07956129,0.00016141,2]
[330778003,1719774648902,-500.0,0.00016141,2]
[330778004,1719774648912,-951.73,0.00016141,2]
[330778005,1719774648921,-500.0,0.00016141,2]
[330778006,1719774648930,-641.74,0.00016141,2]
[330778007,1719774648941,-1705.92,0.00016141,2]
[330778008,1719774648951,-500.0,0.00016141,2]
[330778009,1719774648961,-500.0,0.00016141,2]
[330778010,1719774648970,-991.95,0.00016141,2]
[330778011,1719774648979,-1458.56,0.00016141,2]
[330778012,1719774648989,-500.0,0.00016141,2]
[330778013,1719774648998,-500.0,0.00016141,2]
[330778014,1719774649008,-500.0,0.00016141,2]
[330778015,1719774649016,-537.54,0.00016141,2]
[330778016,1719774649025,-578.91,0.00016141,2]
[330778017,1719774649034,-500.0,0.00016141,2]
[330778018,1719774649043,-751.46,0.00016141,2]
[330778019,1719774649052,-500.0,0.00016141,2]
[330778020,1719774649062,-507.25,0.00016141,2]
[330778021,1719774649072,-1003.06,0.00016141,2]
[330778022,1719774649081,-500.0,0.00016141,2]
[330778023,1719774649090,-807.07,0.00016141,2]
[330778024,1719774649099,-501.72,0.00016141,2]
[330778025,1719774649108,-685.07,0.00016141,2]
[330778026,1719774649117,-500.0,0.00016141,2]
[330778027,1719774649127,-500.0,0.00016141,2]
[330778028,1719774649137,-500.0,0.00016141,2]
[330778029,1719774649147,-515.22794539,0.00016141,2]
[330778030,1719774649157,-500.0,0.00016141,2]
[330778031,1719774649167,-279.917869,0.00016141,2]
[330778032,1719774649177,-279.917869,0.00016141,2]
[330778033,1719774649259,-500.0,0.00016141,2]
[330778034,1719774649276,-500.0,0.00016141,2]
[330778035,1719774649284,-500.0,0.00016141,2]
[330778036,1719774649294,-526.24147008,0.00016141,2]
[330778037,1719774649304,-507.65121203,0.00016141,2]
[330778038,1719774649314,-151.0,0.00016141,2]
[330778039,1719774649323,-500.0,0.00016141,2]
[330778040,1719774649332,-778.37,0.00016141,2]
[330778041,1719774649342,-500.0,0.00016141,2]
[330778042,1719774649351,-500.0,0.00016141,2]
[330778043,1719774649362,-1141.65,0.00016141,2]
[330778044,1719774649372,-500.0,0.00016141,2]
[330778045,1719774649383,-500.0,0.00016141,2]
[330778046,1719774649392,-598.81,0.00016141,2]
[330778047,1719774649402,-500.0,0.00016141,2]
[330778048,1719774649412,-2484.07,0.00016141,2]
[330778049,1719774649422,-500.0,0.00016141,2]
[330778050,1719774649431,-874.97,0.00016141,2]
[330778051,1719774649441,-12013.27,0.00016141,2]
[330778052,1719774649450,-1589.89,0.00016141,2]
[330778053,1719774649459,-151.0,0.00016141,2]
[330778054,1719774649468,-500.0,0.00016141,2]
[330778055,1719774649477,-3947.59,0.00016141,2]
[330778056,1719774649488,-594.68,0.00016141,2]
[330778057,1719774649498,-500.0,0.00016141,2]
[330778058,1719774649508,-1718.52,0.00016141,2]
[330778059,1719774649517,-500.0,0.00016141,2]
[330778060,1719774649526,-11916.96,0.00016141,2]
[330778061,1719774649535,-770.61,0.00016141,2]